[Event "Titled Tuesday Blitz May 16 Late 2023"]
[White "Pichot, Alan"]
[Black "Samsonkin, Artiom"]
[WhiteFideId "110973"]
[BlackFideId "13503111"]
[WhiteElo "2573"]
[BlackElo "2524"]
[Result "0-1"]
[Round "08"]
[TimeControl "180+2"]
[Date "2023.05.16"]
[WhiteClock "0:00:15"]
[BlackClock "0:00:06"]

1. e4 {[%clk 0:03:00]}  e6 {[%clk 0:02:55]} 2. d4 {[%clk 0:03:00]}  d5 {[%clk 0:02:55]} 3. Nc3 {[%clk 0:03:00]}  dxe4 {[%clk 0:02:55]} 4. Nxe4 {[%clk 0:03:00]}  Bd7 {[%clk 0:02:56]} 5. Bd3 {[%clk 0:02:58]}  Bc6 {[%clk 0:02:55]} 6. c3 {[%clk 0:02:58]}  Nd7 {[%clk 0:02:11]} 7. Nf3 {[%clk 0:02:52]}  Ngf6 {[%clk 0:02:11]} 8. Nxf6+ {[%clk 0:02:49]}  gxf6 {[%clk 0:02:09]} 9. Bf4 {[%clk 0:02:43]}  Bd6 {[%clk 0:02:04]} 10. Bg3 {[%clk 0:02:42]}  f5 {[%clk 0:02:04]} 11. Bxd6 {[%clk 0:02:28]}  cxd6 {[%clk 0:02:04]} 12. Qe2 {[%clk 0:02:28]}  Qf6 {[%clk 0:02:01]} 13. O-O-O {[%clk 0:02:24]}  O-O-O {[%clk 0:02:00]} 14. Rhe1 {[%clk 0:02:19]}  Rhg8 {[%clk 0:02:00]} 15. g3 {[%clk 0:02:17]}  Qh6+ {[%clk 0:01:42]} 16. Kb1 {[%clk 0:02:14]}  Nf6 {[%clk 0:01:42]} 17. Nh4 {[%clk 0:02:06]}  Kb8 {[%clk 0:01:24]} 18. f3 {[%clk 0:01:55]}  f4 {[%clk 0:01:16]} 19. Qd2 {[%clk 0:01:51]}  Nh5 {[%clk 0:00:44]} 20. Be4 {[%clk 0:01:36]}  Bxe4+ {[%clk 0:00:44]} 21. fxe4 {[%clk 0:01:36]}  Qf6 {[%clk 0:00:42]} 22. Rf1 {[%clk 0:01:32]}  Qg5 {[%clk 0:00:39]} 23. Nf3 {[%clk 0:01:27]}  Qg6 {[%clk 0:00:40]} 24. gxf4 {[%clk 0:01:16]}  Qxe4+ {[%clk 0:00:38]} 25. Ka1 {[%clk 0:01:16]}  Qxf4 {[%clk 0:00:29]} 26. Qe2 {[%clk 0:01:17]}  Qg4 {[%clk 0:00:27]} 27. Qb5 {[%clk 0:01:12]}  a6 {[%clk 0:00:26]} 28. Qb4 {[%clk 0:01:08]}  Nf4 {[%clk 0:00:24]} 29. Nd2 {[%clk 0:01:02]}  Nd5 {[%clk 0:00:21]} 30. Qb3 {[%clk 0:00:58]}  Ne3 {[%clk 0:00:21]} 31. Nc4 {[%clk 0:00:51]}  Nxf1 {[%clk 0:00:17]} 32. Rxf1 {[%clk 0:00:47]}  Qg1 {[%clk 0:00:12]} 33. Rb1 {[%clk 0:00:46]}  Qg2 {[%clk 0:00:12]} 34. Na5 {[%clk 0:00:44]}  Qd5 {[%clk 0:00:12]} 35. Qa3 {[%clk 0:00:40]}  Rg5 {[%clk 0:00:12]} 36. b4 {[%clk 0:00:36]}  Rdg8 {[%clk 0:00:12]} 37. Qa4 {[%clk 0:00:33]}  Rg1 {[%clk 0:00:10]} 38. Nb3 {[%clk 0:00:18]}  Rxb1+ {[%clk 0:00:09]} 39. Kxb1 {[%clk 0:00:19]}  Rg1+ {[%clk 0:00:09]} 40. Kb2 {[%clk 0:00:15]}  Qb5 {[%clk 0:00:06]} 0-1


[Site "https://www.chess.com"]

[Event "Titled Tuesday Blitz May 16 Late 2023"]
[White "Naroditsky, Daniel"]
[Black "Kuznetsov, Felix"]
[WhiteFideId "2026961"]
[BlackFideId "34147990"]
[WhiteElo "2633"]
[BlackElo "2281"]
[Result "1-0"]
[Round "08"]
[TimeControl "180+2"]
[Date "2023.05.16"]
[WhiteClock "0:00:35"]
[BlackClock "0:00:00"]

1. e4 {[%clk 0:03:00]}  c5 {[%clk 0:03:00]} 2. Nf3 {[%clk 0:03:00]}  Nc6 {[%clk 0:02:58]} 3. Bb5 {[%clk 0:03:00]}  d6 {[%clk 0:02:52]} 4. O-O {[%clk 0:03:00]}  Bd7 {[%clk 0:02:52]} 5. Re1 {[%clk 0:03:00]}  Nf6 {[%clk 0:02:51]} 6. c3 {[%clk 0:03:00]}  a6 {[%clk 0:02:50]} 7. Bf1 {[%clk 0:02:53]}  Bg4 {[%clk 0:02:50]} 8. h3 {[%clk 0:02:54]}  Bxf3 {[%clk 0:02:50]} 9. Qxf3 {[%clk 0:02:54]}  g6 {[%clk 0:02:51]} 10. Qd1 {[%clk 0:02:54]}  Bg7 {[%clk 0:02:51]} 11. d4 {[%clk 0:02:55]}  cxd4 {[%clk 0:02:38]} 12. cxd4 {[%clk 0:02:56]}  O-O {[%clk 0:02:36]} 13. Nc3 {[%clk 0:02:56]}  Nd7 {[%clk 0:02:23]} 14. Be3 {[%clk 0:02:55]}  b5 {[%clk 0:02:24]} 15. Rc1 {[%clk 0:02:53]}  Rc8 {[%clk 0:02:22]} 16. a4 {[%clk 0:02:52]}  b4 {[%clk 0:02:18]} 17. Ne2 {[%clk 0:02:46]}  a5 {[%clk 0:02:11]} 18. d5 {[%clk 0:02:45]}  Nce5 {[%clk 0:02:02]} 19. Nd4 {[%clk 0:02:42]}  Rxc1 {[%clk 0:01:57]} 20. Qxc1 {[%clk 0:02:43]}  Nc5 {[%clk 0:01:57]} 21. Qc2 {[%clk 0:02:41]}  Qa8 {[%clk 0:01:14]} 22. f4 {[%clk 0:02:40]}  Ned7 {[%clk 0:01:15]} 23. Nc6 {[%clk 0:02:39]}  Re8 {[%clk 0:01:09]} 24. Bc4 {[%clk 0:02:27]}  b3 {[%clk 0:00:49]} 25. Bxb3 {[%clk 0:02:23]}  Qb7 {[%clk 0:00:49]} 26. Bc4 {[%clk 0:02:19]}  Qxb2 {[%clk 0:00:46]} 27. Qxb2 {[%clk 0:02:15]}  Bxb2 {[%clk 0:00:47]} 28. Bd2 {[%clk 0:01:57]}  Nxa4 {[%clk 0:00:44]} 29. Bxa5 {[%clk 0:01:57]}  Nac5 {[%clk 0:00:42]} 30. e5 {[%clk 0:01:56]}  Kf8 {[%clk 0:00:28]} 31. Rb1 {[%clk 0:01:25]}  Ba3 {[%clk 0:00:21]} 32. Bc7 {[%clk 0:01:08]}  dxe5 {[%clk 0:00:19]} 33. fxe5 {[%clk 0:01:08]}  Rc8 {[%clk 0:00:17]} 34. d6 {[%clk 0:01:04]}  exd6 {[%clk 0:00:15]} 35. Bxd6+ {[%clk 0:01:05]}  Kg7 {[%clk 0:00:15]} 36. Na7 {[%clk 0:00:54]}  Ra8 {[%clk 0:00:16]} 37. Nb5 {[%clk 0:00:54]}  Ra4 {[%clk 0:00:11]} 38. Nxa3 {[%clk 0:00:47]}  Rxa3 {[%clk 0:00:11]} 39. Rf1 {[%clk 0:00:48]}  f5 {[%clk 0:00:03]} 40. exf6+ {[%clk 0:00:45]}  Kh6 {[%clk 0:00:01]} 41. f7 {[%clk 0:00:44]}  Rc3 {[%clk 0:00:00]} 42. Bb5 {[%clk 0:00:35]} 1-0


[Site "https://www.chess.com"]

[Event "Titled Tuesday Blitz May 16 Late 2023"]
[White "Djokic, Mihailo"]
[Black "Lazavik, Denis"]
[WhiteFideId "976440"]
[BlackFideId "13515110"]
[WhiteElo "2294"]
[BlackElo "2560"]
[Result "0-1"]
[Round "08"]
[TimeControl "180+2"]
[Date "2023.05.16"]
[WhiteClock "0:00:00"]
[BlackClock "0:00:25"]

1. e4 {[%clk 0:03:00]}  c5 {[%clk 0:02:59]} 2. Nf3 {[%clk 0:03:00]}  e6 {[%clk 0:03:00]} 3. d4 {[%clk 0:03:01]}  cxd4 {[%clk 0:03:01]} 4. Nxd4 {[%clk 0:03:01]}  Nc6 {[%clk 0:03:01]} 5. Nc3 {[%clk 0:03:02]}  Qc7 {[%clk 0:03:02]} 6. Be2 {[%clk 0:03:02]}  Nf6 {[%clk 0:03:01]} 7. O-O {[%clk 0:03:02]}  a6 {[%clk 0:03:01]} 8. Be3 {[%clk 0:03:03]}  Be7 {[%clk 0:03:01]} 9. f4 {[%clk 0:03:03]}  d6 {[%clk 0:03:01]} 10. Kh1 {[%clk 0:03:04]}  O-O {[%clk 0:03:01]} 11. Qe1 {[%clk 0:03:04]}  Nxd4 {[%clk 0:03:00]} 12. Bxd4 {[%clk 0:03:05]}  b5 {[%clk 0:03:00]} 13. a3 {[%clk 0:03:05]}  Bb7 {[%clk 0:03:00]} 14. Qg3 {[%clk 0:03:05]}  Rad8 {[%clk 0:02:59]} 15. Rae1 {[%clk 0:03:05]}  Rd7 {[%clk 0:02:54]} 16. Bd3 {[%clk 0:03:05]}  Bc6 {[%clk 0:02:34]} 17. Qh3 {[%clk 0:03:03]}  e5 {[%clk 0:02:33]} 18. Be3 {[%clk 0:03:03]}  Rdd8 {[%clk 0:02:26]} 19. f5 {[%clk 0:01:58]}  Qb7 {[%clk 0:02:18]} 20. Bg5 {[%clk 0:01:55]}  a5 {[%clk 0:02:17]} 21. b4 {[%clk 0:01:55]}  axb4 {[%clk 0:02:08]} 22. axb4 {[%clk 0:01:54]}  Ra8 {[%clk 0:01:55]} 23. Nb1 {[%clk 0:01:28]}  Ra4 {[%clk 0:01:47]} 24. c3 {[%clk 0:01:27]}  Ra2 {[%clk 0:01:45]} 25. Nd2 {[%clk 0:01:24]}  Rd8 {[%clk 0:01:36]} 26. Nb3 {[%clk 0:01:22]}  Qb6 {[%clk 0:01:28]} 27. Be3 {[%clk 0:01:22]}  Qb8 {[%clk 0:01:28]} 28. Bg5 {[%clk 0:01:22]}  d5 {[%clk 0:01:25]} 29. Na5 {[%clk 0:01:19]}  Ba8 {[%clk 0:01:24]} 30. exd5 {[%clk 0:01:18]}  Rxd5 {[%clk 0:01:09]} 31. Re2 {[%clk 0:01:16]}  Rxe2 {[%clk 0:01:01]} 32. Bxe2 {[%clk 0:01:16]}  h6 {[%clk 0:01:01]} 33. Bxf6 {[%clk 0:01:04]}  Bxf6 {[%clk 0:01:00]} 34. Qe3 {[%clk 0:00:58]}  Rd8 {[%clk 0:00:52]} 35. h3 {[%clk 0:00:44]}  Bg5 {[%clk 0:00:50]} 36. Qg3 {[%clk 0:00:36]}  Rd2 {[%clk 0:00:39]} 37. Bf3 {[%clk 0:00:34]}  Bf4 {[%clk 0:00:38]} 38. Qe1 {[%clk 0:00:25]}  Bxf3 {[%clk 0:00:35]} 39. Rxf3 {[%clk 0:00:25]}  Qd6 {[%clk 0:00:35]} 40. Rf1 {[%clk 0:00:22]}  Qd5 {[%clk 0:00:35]} 41. Rg1 {[%clk 0:00:16]}  e4 {[%clk 0:00:33]} 42. Qh4 {[%clk 0:00:11]}  Bg5 {[%clk 0:00:32]} 43. Qg3 {[%clk 0:00:09]}  Rd3 {[%clk 0:00:30]} 44. Qg4 {[%clk 0:00:06]}  e3 {[%clk 0:00:30]} 45. c4 {[%clk 0:00:05]}  bxc4 {[%clk 0:00:30]} 46. Nxc4 {[%clk 0:00:06]}  Rd4 {[%clk 0:00:29]} 47. Nb6 {[%clk 0:00:03]}  Qd8 {[%clk 0:00:26]} 48. Qg3 {[%clk 0:00:01]}  Qxb6 {[%clk 0:00:26]} 49. Rd1 {[%clk 0:00:00]}  Rxd1+ {[%clk 0:00:25]} 0-1


[Site "https://www.chess.com"]

[Event "Titled Tuesday Blitz May 16 Late 2023"]
[White "Weetik, Vjacheslav"]
[Black "Pap, Gyula"]
[WhiteFideId "4153472"]
[BlackFideId "725323"]
[WhiteElo "2469"]
[BlackElo "2519"]
[Result "0-1"]
[Round "08"]
[TimeControl "180+2"]
[Date "2023.05.16"]
[WhiteClock "0:00:00"]
[BlackClock "0:00:06"]

1. d4 {[%clk 0:02:54]}  Nf6 {[%clk 0:02:58]} 2. c4 {[%clk 0:02:54]}  e6 {[%clk 0:02:58]} 3. g3 {[%clk 0:02:54]}  d5 {[%clk 0:02:58]} 4. Nf3 {[%clk 0:02:54]}  Be7 {[%clk 0:02:58]} 5. Bg2 {[%clk 0:02:54]}  O-O {[%clk 0:02:59]} 6. O-O {[%clk 0:02:55]}  Nbd7 {[%clk 0:03:00]} 7. Nc3 {[%clk 0:02:51]}  dxc4 {[%clk 0:02:55]} 8. a4 {[%clk 0:02:48]}  a5 {[%clk 0:02:50]} 9. e4 {[%clk 0:02:38]}  c6 {[%clk 0:02:35]} 10. Qe2 {[%clk 0:02:33]}  b6 {[%clk 0:02:35]} 11. Rd1 {[%clk 0:02:29]}  Ba6 {[%clk 0:02:35]} 12. Bf4 {[%clk 0:02:21]}  Re8 {[%clk 0:02:32]} 13. Ne5 {[%clk 0:02:10]}  Nxe5 {[%clk 0:02:26]} 14. Bxe5 {[%clk 0:01:57]}  Nd7 {[%clk 0:02:25]} 15. Bf4 {[%clk 0:01:56]}  Nf6 {[%clk 0:02:26]} 16. Qc2 {[%clk 0:01:48]}  Qc8 {[%clk 0:02:12]} 17. d5 {[%clk 0:01:40]}  Bc5 {[%clk 0:01:17]} 18. Bh3 {[%clk 0:01:02]}  Qb7 {[%clk 0:00:58]} 19. d6 {[%clk 0:00:56]}  e5 {[%clk 0:00:55]} 20. Bg5 {[%clk 0:00:56]}  Nd7 {[%clk 0:00:48]} 21. Qe2 {[%clk 0:00:42]}  Bd4 {[%clk 0:00:35]} 22. Qg4 {[%clk 0:00:37]}  Nf8 {[%clk 0:00:35]} 23. d7 {[%clk 0:00:14]}  Red8 {[%clk 0:00:35]} 24. Bxd8 {[%clk 0:00:14]}  Rxd8 {[%clk 0:00:36]} 25. Rab1 {[%clk 0:00:11]}  Nxd7 {[%clk 0:00:32]} 26. Ne2 {[%clk 0:00:11]}  Nf6 {[%clk 0:00:31]} 27. Qh4 {[%clk 0:00:10]}  c5 {[%clk 0:00:31]} 28. Nc3 {[%clk 0:00:08]}  Qe7 {[%clk 0:00:25]} 29. Bg2 {[%clk 0:00:08]}  h6 {[%clk 0:00:24]} 30. Bf3 {[%clk 0:00:08]}  Bc8 {[%clk 0:00:23]} 31. Nb5 {[%clk 0:00:04]}  Kh7 {[%clk 0:00:21]} 32. g4 {[%clk 0:00:03]}  Bd7 {[%clk 0:00:16]} 33. Qg3 {[%clk 0:00:02]}  Bxb5 {[%clk 0:00:16]} 34. axb5 {[%clk 0:00:03]}  Qd7 {[%clk 0:00:15]} 35. h4 {[%clk 0:00:03]}  g5 {[%clk 0:00:15]} 36. Kg2 {[%clk 0:00:03]}  Kg7 {[%clk 0:00:15]} 37. Rh1 {[%clk 0:00:03]}  Kf8 {[%clk 0:00:14]} 38. hxg5 {[%clk 0:00:02]}  hxg5 {[%clk 0:00:15]} 39. Rh6 {[%clk 0:00:02]}  Ke7 {[%clk 0:00:15]} 40. Rbh1 {[%clk 0:00:02]}  Bxb2 {[%clk 0:00:13]} 41. Rxf6 {[%clk 0:00:01]}  Kxf6 {[%clk 0:00:14]} 42. Rh6+ {[%clk 0:00:01]}  Ke7 {[%clk 0:00:14]} 43. Rh7 {[%clk 0:00:02]}  Qe6 {[%clk 0:00:13]} 44. Qh3 {[%clk 0:00:02]}  Qf6 {[%clk 0:00:12]} 45. Rh6 {[%clk 0:00:02]}  Qf4 {[%clk 0:00:13]} 46. Rxb6 {[%clk 0:00:02]}  c3 {[%clk 0:00:09]} 47. Qh6 {[%clk 0:00:02]}  c2 {[%clk 0:00:08]} 48. Rb7+ {[%clk 0:00:02]}  Rd7 {[%clk 0:00:08]} 49. Rxd7+ {[%clk 0:00:03]}  Kxd7 {[%clk 0:00:09]} 50. Qc6+ {[%clk 0:00:03]}  Ke7 {[%clk 0:00:09]} 51. Qxc5+ {[%clk 0:00:03]}  Kf6 {[%clk 0:00:09]} 52. Qxc2 {[%clk 0:00:04]}  Bd4 {[%clk 0:00:09]} 53. b6 {[%clk 0:00:04]}  Kg7 {[%clk 0:00:03]} 54. b7 {[%clk 0:00:04]}  Ba7 {[%clk 0:00:04]} 55. Qc8 {[%clk 0:00:04]}  Qd2 {[%clk 0:00:03]} 56. b8=Q {[%clk 0:00:02]}  Qxf2+ {[%clk 0:00:03]} 57. Kh3 {[%clk 0:00:02]}  Qxf3+ {[%clk 0:00:04]} 58. Kh2 {[%clk 0:00:02]}  Qf2+ {[%clk 0:00:04]} 59. Kh3 {[%clk 0:00:03]}  Qh4+ {[%clk 0:00:05]} 60. Kg2 {[%clk 0:00:03]}  Bxb8 {[%clk 0:00:05]} 61. Qxb8 {[%clk 0:00:03]}  Qxg4+ {[%clk 0:00:06]} 62. Kf2 {[%clk 0:00:03]}  Qf4+ {[%clk 0:00:06]} 63. Kg1 {[%clk 0:00:03]}  Qxe4 {[%clk 0:00:07]} 64. Qb1 {[%clk 0:00:00]}  Qxb1+ {[%clk 0:00:06]} 0-1


[Site "https://www.chess.com"]

[Event "Titled Tuesday Blitz May 16 Late 2023"]
[White "Pakleza, Zbigniew"]
[Black "benny_aizenberg"]
[WhiteFideId "1119290"]
[WhiteElo "2410"]
[BlackElo "2679"]
[Result "0-1"]
[Round "08"]
[TimeControl "180+2"]
[Date "2023.05.16"]
[WhiteClock "0:00:00"]
[BlackClock "0:00:36"]

1. d4 {[%clk 0:03:00]}  f5 {[%clk 0:02:59]} 2. Nf3 {[%clk 0:03:00]}  Nf6 {[%clk 0:02:59]} 3. c4 {[%clk 0:03:00]}  g6 {[%clk 0:02:59]} 4. Nc3 {[%clk 0:03:01]}  Bg7 {[%clk 0:02:58]} 5. e3 {[%clk 0:03:02]}  O-O {[%clk 0:02:57]} 6. Be2 {[%clk 0:03:02]}  d6 {[%clk 0:02:58]} 7. b4 {[%clk 0:03:03]}  Nbd7 {[%clk 0:02:58]} 8. O-O {[%clk 0:02:59]}  e5 {[%clk 0:02:58]} 9. a4 {[%clk 0:02:58]}  e4 {[%clk 0:02:51]} 10. Nd2 {[%clk 0:02:59]}  Qe7 {[%clk 0:02:48]} 11. Ba3 {[%clk 0:02:58]}  f4 {[%clk 0:02:37]} 12. exf4 {[%clk 0:02:31]}  e3 {[%clk 0:02:37]} 13. Nb3 {[%clk 0:02:32]}  Ne4 {[%clk 0:02:28]} 14. Nd5 {[%clk 0:02:06]}  exf2+ {[%clk 0:02:27]} 15. Rxf2 {[%clk 0:02:06]}  Qf7 {[%clk 0:02:25]} 16. Rf3 {[%clk 0:01:45]}  c6 {[%clk 0:02:23]} 17. Nc3 {[%clk 0:01:09]}  Nxc3 {[%clk 0:02:15]} 18. Rxc3 {[%clk 0:01:09]}  Qxf4 {[%clk 0:02:15]} 19. Rf3 {[%clk 0:01:06]}  Qg5 {[%clk 0:02:15]} 20. Bc1 {[%clk 0:00:57]}  Qe7 {[%clk 0:02:09]} 21. Bf4 {[%clk 0:00:49]}  Nf6 {[%clk 0:02:00]} 22. Re3 {[%clk 0:00:44]}  Qd8 {[%clk 0:01:58]} 23. Rc1 {[%clk 0:00:24]}  Nh5 {[%clk 0:01:44]} 24. Bxh5 {[%clk 0:00:24]}  Rxf4 {[%clk 0:01:44]} 25. Bf3 {[%clk 0:00:24]}  Bd7 {[%clk 0:01:39]} 26. Rc2 {[%clk 0:00:11]}  Qg5 {[%clk 0:01:37]} 27. Rce2 {[%clk 0:00:07]}  Raf8 {[%clk 0:01:37]} 28. Kh1 {[%clk 0:00:07]}  Bg4 {[%clk 0:01:33]} 29. d5 {[%clk 0:00:04]}  Rxf3 {[%clk 0:00:56]} 30. gxf3 {[%clk 0:00:04]}  Bxf3+ {[%clk 0:00:56]} 31. Rxf3 {[%clk 0:00:04]}  Rxf3 {[%clk 0:00:56]} 32. dxc6 {[%clk 0:00:03]}  bxc6 {[%clk 0:00:53]} 33. Nd2 {[%clk 0:00:02]}  Rf8 {[%clk 0:00:46]} 34. Ne4 {[%clk 0:00:02]}  Qg4 {[%clk 0:00:44]} 35. Re1 {[%clk 0:00:01]}  Qh4 {[%clk 0:00:37]} 36. Qe2 {[%clk 0:00:00]}  Be5 {[%clk 0:00:36]} 0-1


[Site "https://www.chess.com"]

[Event "Titled Tuesday Blitz May 16 Late 2023"]
[White "Domingo Nunez, Ruben"]
[Black "Rodshtein, Maxim"]
[WhiteFideId "22245570"]
[BlackFideId "2806851"]
[WhiteElo "2404"]
[BlackElo "2555"]
[Result "0-1"]
[Round "08"]
[TimeControl "180+2"]
[Date "2023.05.16"]
[WhiteClock "0:00:00"]
[BlackClock "0:00:42"]

1. c4 {[%clk 0:03:00]}  g6 {[%clk 0:02:59]} 2. Nf3 {[%clk 0:03:00]}  Bg7 {[%clk 0:02:59]} 3. g3 {[%clk 0:03:01]}  f5 {[%clk 0:02:57]} 4. Bg2 {[%clk 0:03:00]}  e5 {[%clk 0:02:57]} 5. Nc3 {[%clk 0:02:59]}  d6 {[%clk 0:02:57]} 6. d3 {[%clk 0:02:58]}  Nf6 {[%clk 0:02:57]} 7. Rb1 {[%clk 0:02:59]}  O-O {[%clk 0:02:57]} 8. b4 {[%clk 0:02:57]}  Kh8 {[%clk 0:02:45]} 9. Bd2 {[%clk 0:02:35]}  h6 {[%clk 0:02:41]} 10. a4 {[%clk 0:02:28]}  g5 {[%clk 0:02:38]} 11. O-O {[%clk 0:02:22]}  Nc6 {[%clk 0:02:15]} 12. b5 {[%clk 0:02:21]}  Ne7 {[%clk 0:02:15]} 13. c5 {[%clk 0:02:20]}  Ng6 {[%clk 0:02:10]} 14. cxd6 {[%clk 0:02:10]}  cxd6 {[%clk 0:02:10]} 15. Bc1 {[%clk 0:02:10]}  d5 {[%clk 0:02:07]} 16. d4 {[%clk 0:02:09]}  e4 {[%clk 0:02:05]} 17. Ne5 {[%clk 0:02:10]}  Nxe5 {[%clk 0:01:53]} 18. dxe5 {[%clk 0:02:11]}  Ng4 {[%clk 0:01:53]} 19. Ba3 {[%clk 0:02:02]}  Re8 {[%clk 0:01:46]} 20. Nxd5 {[%clk 0:02:00]}  Be6 {[%clk 0:01:28]} 21. Ne7 {[%clk 0:00:43]}  Nxe5 {[%clk 0:01:26]} 22. Qd6 {[%clk 0:00:26]}  Qxd6 {[%clk 0:01:20]} 23. Bxd6 {[%clk 0:00:27]}  Nc4 {[%clk 0:01:20]} 24. Bb4 {[%clk 0:00:28]}  Bf6 {[%clk 0:01:00]} 25. Nxf5 {[%clk 0:00:03]}  Bxf5 {[%clk 0:00:59]} 26. Rbc1 {[%clk 0:00:04]}  Rac8 {[%clk 0:00:58]} 27. Rfd1 {[%clk 0:00:05]}  Nb2 {[%clk 0:00:54]} 28. Re1 {[%clk 0:00:04]}  Nxa4 {[%clk 0:00:52]} 29. Rb1 {[%clk 0:00:04]}  b6 {[%clk 0:00:50]} 30. Rbd1 {[%clk 0:00:02]}  Red8 {[%clk 0:00:48]} 31. Rb1 {[%clk 0:00:01]}  Kg7 {[%clk 0:00:46]} 32. e3 {[%clk 0:00:01]}  Rc2 {[%clk 0:00:44]} 33. g4 {[%clk 0:00:01]}  Bg6 {[%clk 0:00:42]} 34. h3 {[%clk 0:00:02]}  Nc3 {[%clk 0:00:42]} 35. Rbc1 {[%clk 0:00:00]}  Rxc1 {[%clk 0:00:42]} 0-1


[Site "https://www.chess.com"]

[Event "Titled Tuesday Blitz May 16 Late 2023"]
[White "Quispe Arteaga, Gabriel"]
[Black "Denishev, Marat"]
[WhiteFideId "32059809"]
[BlackFideId "24131563"]
[WhiteElo "2274"]
[BlackElo "2311"]
[Result "0-1"]
[Round "08"]
[TimeControl "180+2"]
[Date "2023.05.16"]
[WhiteClock "0:00:00"]
[BlackClock "0:00:13"]

1. c4 {[%clk 0:03:00]}  Nf6 {[%clk 0:02:59]} 2. Nc3 {[%clk 0:02:58]}  c5 {[%clk 0:02:59]} 3. Nf3 {[%clk 0:02:59]}  e6 {[%clk 0:02:56]} 4. d4 {[%clk 0:02:58]}  cxd4 {[%clk 0:02:56]} 5. Nxd4 {[%clk 0:02:58]}  a6 {[%clk 0:02:55]} 6. g3 {[%clk 0:02:48]}  Nc6 {[%clk 0:02:54]} 7. Bg2 {[%clk 0:02:48]}  Bb4 {[%clk 0:02:54]} 8. O-O {[%clk 0:02:49]}  O-O {[%clk 0:02:54]} 9. Nxc6 {[%clk 0:02:46]}  bxc6 {[%clk 0:02:53]} 10. Qc2 {[%clk 0:02:46]}  d5 {[%clk 0:02:51]} 11. Rd1 {[%clk 0:02:38]}  Qe7 {[%clk 0:02:46]} 12. a3 {[%clk 0:02:31]}  Bd6 {[%clk 0:02:40]} 13. e4 {[%clk 0:02:15]}  dxc4 {[%clk 0:02:30]} 14. Na4 {[%clk 0:02:06]}  e5 {[%clk 0:02:25]} 15. Nb6 {[%clk 0:01:58]}  Be6 {[%clk 0:02:20]} 16. Nxa8 {[%clk 0:01:56]}  Rxa8 {[%clk 0:02:20]} 17. h3 {[%clk 0:01:19]}  Bc5 {[%clk 0:02:16]} 18. Qe2 {[%clk 0:01:19]}  Bd4 {[%clk 0:02:13]} 19. Be3 {[%clk 0:01:19]}  c5 {[%clk 0:02:13]} 20. Rac1 {[%clk 0:01:19]}  Rb8 {[%clk 0:02:11]} 21. Rc2 {[%clk 0:01:19]}  Qd7 {[%clk 0:02:01]} 22. Kh2 {[%clk 0:01:16]}  Qa4 {[%clk 0:01:56]} 23. Rdc1 {[%clk 0:01:15]}  h6 {[%clk 0:01:53]} 24. f4 {[%clk 0:00:36]}  Rb3 {[%clk 0:01:42]} 25. Bf2 {[%clk 0:00:30]}  Bg4 {[%clk 0:01:18]} 26. hxg4 {[%clk 0:00:09]}  Bxf2 {[%clk 0:01:18]} 27. Bf3 {[%clk 0:00:10]}  Bd4 {[%clk 0:00:46]} 28. Kg2 {[%clk 0:00:08]}  Qd7 {[%clk 0:00:33]} 29. f5 {[%clk 0:00:03]}  Re3 {[%clk 0:00:28]} 30. Qxc4 {[%clk 0:00:02]}  Nxe4 {[%clk 0:00:29]} 31. Bxe4 {[%clk 0:00:01]}  Rxe4 {[%clk 0:00:30]} 32. Re2 {[%clk 0:00:02]}  Rxg4 {[%clk 0:00:27]} 33. Qd3 {[%clk 0:00:03]}  h5 {[%clk 0:00:18]} 34. Kh2 {[%clk 0:00:02]}  h4 {[%clk 0:00:18]} 35. Rg2 {[%clk 0:00:02]}  Bg1+ {[%clk 0:00:12]} 36. Kxg1 {[%clk 0:00:00]}  Qxd3 {[%clk 0:00:13]} 0-1


[Site "https://www.chess.com"]

[Event "Titled Tuesday Blitz May 16 Late 2023"]
[White "Mahdavi, Reza"]
[Black "Kokoszczynski, Jan"]
[WhiteFideId "12595926"]
[BlackFideId "1174460"]
[WhiteElo "2352"]
[BlackElo "2139"]
[Result "1-0"]
[Round "08"]
[TimeControl "180+2"]
[Date "2023.05.16"]
[WhiteClock "0:02:11"]
[BlackClock "0:01:10"]

1. e4 {[%clk 0:03:00]}  e5 {[%clk 0:02:58]} 2. Nf3 {[%clk 0:03:00]}  Nc6 {[%clk 0:02:59]} 3. Nc3 {[%clk 0:03:00]}  Nf6 {[%clk 0:02:58]} 4. d4 {[%clk 0:03:01]}  exd4 {[%clk 0:02:58]} 5. Nxd4 {[%clk 0:03:02]}  Bb4 {[%clk 0:02:58]} 6. Nxc6 {[%clk 0:03:01]}  bxc6 {[%clk 0:02:59]} 7. Bd3 {[%clk 0:03:01]}  d5 {[%clk 0:02:59]} 8. Bd2 {[%clk 0:03:02]}  O-O {[%clk 0:02:57]} 9. O-O {[%clk 0:03:03]}  Ng4 {[%clk 0:02:41]} 10. exd5 {[%clk 0:02:38]}  Qd6 {[%clk 0:01:42]} 11. g3 {[%clk 0:02:18]}  cxd5 {[%clk 0:01:41]} 12. Nb5 {[%clk 0:02:09]}  Qe7 {[%clk 0:01:22]} 13. Bxb4 {[%clk 0:02:09]}  Qxb4 {[%clk 0:01:22]} 14. Nxc7 {[%clk 0:02:09]}  Rb8 {[%clk 0:01:18]} 15. Nxd5 {[%clk 0:02:09]}  Qxb2 {[%clk 0:01:17]} 16. Ne7+ {[%clk 0:02:10]}  Kh8 {[%clk 0:01:17]} 17. Nxc8 {[%clk 0:02:11]}  Rfxc8 {[%clk 0:01:10]} 18. Qxg4 {[%clk 0:02:11]} 1-0


[Site "https://www.chess.com"]